bitfinex/quotes_ETHUSD_20230403
["timestamp","ask_amount","ask_price","bid_price","bid_amount"]
[1680556690830,0.27994,1786.1,1785.3,0.14668712]
[1680556691050,0.27994,1786.1,1785.4,0.23]
[1680556691229,2.58185532,1786.1,1785.3,0.14668712]
[1680556691429,2.49787632,1786.1,1785.3,0.14668712]
[1680556692062,0.29887632,1786.1,1785.3,0.14668712]
[1680556693059,0.29887632,1786.1,1785.4,0.23]
[1680556693940,0.29887632,1786.1,1785.2,0.142]
[1680556693941,0.29887632,1786.1,1785.3,0.23]
[1680556694270,3.55985,1786.2,1785.4,35.142]
[1680556694271,0.27993,1786.2,1785.4,35.142]
[1680556694488,0.27993,1786.2,1785.5,3.7442]
[1680556694644,0.27993,1786.2,1785.5,3.8862]
[1680556694842,0.27993,1786.2,1785.6,0.142]
[1680556695092,0.27993,1786.2,1785.5,3.8862]
[1680556695244,0.27993,1786.2,1785.6,0.37442]
[1680556695845,0.15041351,1786.4,1785.6,0.51642]
[1680556696111,0.14241351,1786.4,1785.7,0.372]
[1680556696395,0.28785571,1786.7,1785.8,0.27998]
[1680556696557,0.27985571,1786.7,1785.8,0.142]
[1680556696758,0.27985571,1786.7,1785.8,0.5974433]
[1680556696996,0.4296011,1786.7,1785.9,5.884]
[1680556697210,0.9892911,1786.7,1786.0,0.23]
[1680556697645,0.9812911,1786.7,1786.0,0.23]
[1680556697846,0.9812911,1786.7,1786.0,0.23468528]
[1680556697847,0.1417611,1786.7,1786.0,0.23468528]
[1680556698077,0.1417611,1786.7,1786.0,0.42663528]
[1680556698304,0.1417611,1786.7,1786.1,0.23]
[1680556698596,0.4216011,1786.7,1786.1,0.37668502]
[1680556699985,0.4216011,1786.7,1786.1,0.23468502]
[1680556700295,0.1417611,1786.7,1786.1,0.37668502]
[1680556700508,5.71e-06,1786.7,1786.2,2.76602218]
[1680556700684,0.29878203,1786.7,1786.2,2.76602218]
[1680556701147,1.29878203,1786.7,1786.0,0.26565653]
[1680556701352,1.29878203,1786.7,1786.0,2.76602218]
[1680556701353,4.85847203,1786.7,1786.0,2.76602218]
[1680556701553,4.86647203,1786.7,1786.3,0.27823103]
[1680556701778,1.95912,1786.5,1786.3,0.27823103]
[1680556701980,3.02694203,1786.7,1786.4,2.76602218]
[1680556701981,0.008,1786.6,1786.4,2.76602218]
[1680556702287,5.71e-06,1786.7,1786.4,2.76602218]
[1680556702492,5.71e-06,1786.7,1786.5,0.27660222]
[1680556702711,5.71e-06,1786.7,1786.5,3.0426244]
[1680556703125,5.71e-06,1786.7,1786.5,0.27660222]
[1680556703330,0.83953571,1786.7,1786.3,0.27823103]
[1680556703536,1.95891571,1786.7,1786.3,0.27823103]
[1680556704528,7.84291571,1786.7,1786.4,35.0]
[1680556704810,0.83962,1786.5,1786.4,35.002]
[1680556705009,11.29762,1786.5,1786.4,0.002]
[1680556705218,0.002,1786.3,1785.1,0.5731791]
[1680556705376,5.884,1785.9,1785.4,0.142]
[1680556705573,1.44729632,1785.8,1785.3,0.142]
[1680556705780,1.44729632,1785.8,1785.1,0.142]
[1680556706218,1.44729632,1785.8,1785.0,0.142]
[1680556706433,0.14472963,1785.7,1784.9,0.148]
[1680556706578,0.28003,1785.5,1785.2,0.27578014]
[1680556706774,0.36593163,1785.5,1785.2,0.27578014]
[1680556707415,0.36593163,1785.5,1784.9,0.01068817]
[1680556707606,0.28003,1785.5,1784.9,0.00468817]
[1680556708180,0.28003,1785.5,1784.9,0.00668817]
[1680556708387,0.28003,1785.5,1784.9,0.00468817]
[1680556709081,0.84009,1785.5,1784.9,0.00468817]
[1680556709295,0.28003,1785.5,1784.9,3.50595699]
[1680556710081,0.84009,1785.5,1784.9,3.50595699]
[1680556710308,0.84009,1785.5,1784.9,0.00468817]
[1680556710584,3.84009,1785.5,1784.9,0.00468817]
[1680556710809,5.884,1785.4,1784.9,0.00468817]
[1680556711011,0.28007,1785.3,1784.9,0.01068817]
[1680556711216,0.84019,1785.3,1784.9,0.00468817]
[1680556711520,0.84319,1785.3,1784.9,2.72071035]
[1680556711724,0.84019,1785.3,1784.8,35.002]
[1680556712407,0.84819,1785.3,1784.8,35.002]
[1680556712729,0.87181448,1785.3,1784.8,0.002]
[1680556712932,1.36321993,1785.3,1784.7,0.1]
[1680556713080,1.36321993,1785.3,1784.8,2.76602218]
[1680556713280,0.31169448,1785.3,1784.8,2.76602218]
[1680556713540,0.31169448,1785.3,1784.9,0.23]
[1680556713541,0.84019,1785.3,1784.9,0.23]
[1680556713695,0.84819,1785.3,1784.9,2.99602218]
[1680556713907,0.84019,1785.3,1784.9,2.99602218]
[1680556714247,0.84019,1785.3,1784.9,2.76602218]
[1680556715550,0.84019,1785.3,1784.7,0.244]
[1680556715844,0.84019,1785.3,1784.8,2.76602218]
[1680556716500,0.84019,1785.3,1784.9,0.277019]
[1680556717113,0.28007,1785.3,1784.9,0.277019]
[1680556717316,0.84019,1785.3,1784.9,0.277019]
[1680556717659,0.84819,1785.3,1784.8,2.71602218]
[1680556717803,0.28006,1785.3,1784.9,0.27660222]
[1680556718133,0.84018,1785.3,1784.9,3.0426244]
[1680556719936,0.84818,1785.3,1784.9,3.0426244]
[1680556720638,0.84818,1785.3,1784.7,0.244]
[1680556720840,0.84818,1785.3,1784.7,3.00802218]
[1680556721139,4.601,1785.2,1784.7,0.1]
[1680556721515,4.96071,1785.1,1784.7,0.1]
[1680556721662,0.496071,1785.0,1784.7,0.1]
[1680556721863,0.84037,1784.9,1784.7,0.1]
[1680556722060,0.008,1785.0,1784.8,2.76602218]
[1680556722266,0.008,1785.3,1784.8,2.76602218]
[1680556722452,0.008,1785.3,1784.9,0.142]
[1680556722654,0.008,1785.3,1784.9,3.2268374]
[1680556722820,0.28805,1785.4,1784.9,3.2268374]
[1680556723024,0.28805,1785.4,1785.0,0.142]
[1680556723529,0.008,1785.4,1785.0,0.142]
[1680556723747,0.84874364,1785.5,1785.0,0.142]
[1680556724026,0.84874364,1785.5,1785.0,0.49269574]
[1680556724659,0.56870364,1785.5,1785.0,0.49269574]
[1680556724862,0.56870364,1785.5,1785.0,1.33302574]
[1680556725034,0.56870364,1785.5,1785.0,0.77280574]
[1680556725258,0.56870364,1785.5,1785.1,2.76602218]
[1680556725575,0.56870364,1785.5,1785.2,0.55667222]
[1680556725740,0.56870364,1785.5,1785.2,3.0426244]
[1680556726148,0.56870364,1785.5,1785.2,3.3226944]
[1680556726349,0.56870364,1785.5,1785.2,3.0426244]
[1680556726756,0.56070364,1785.5,1785.2,3.0426244]
[1680556726973,0.28802,1785.6,1785.2,3.0426244]
[1680556727135,0.008,1785.6,1785.3,3.30028462]
[1680556727342,0.008,1785.7,1785.4,0.84013]
[1680556727543,0.008,1786.0,1785.5,2.99602218]
[1680556727737,0.54917768,1786.1,1785.6,0.29960222]
[1680556727738,0.83712768,1786.1,1785.6,0.29960222]
[1680556727976,0.55717768,1786.1,1785.7,2.99602218]
[1680556728498,0.83710768,1786.1,1785.7,2.99602218]
[1680556728795,0.55717768,1786.1,1785.7,3.27602218]
[1680556728958,0.82911768,1786.1,1785.7,3.42398662]
[1680556729159,0.55717768,1786.1,1785.7,3.70398662]
[1680556729487,0.008,1786.1,1785.7,4.26398662]
[1680556729691,0.2819,1786.3,1785.7,3.70398662]
[1680556729692,0.008,1786.2,1785.7,3.70398662]
[1680556729856,0.28792,1786.2,1785.7,3.42398662]
[1680556730046,0.008,1786.2,1785.8,0.34239866]
[1680556730248,0.008,1786.2,1785.8,3.38840084]
[1680556730476,0.008,1786.2,1785.8,3.10842084]
[1680556731248,0.008,1786.2,1785.8,3.38840084]
[1680556731680,0.008,1786.2,1785.9,0.24709558]
[1680556732049,0.008,1786.2,1785.9,3.01311776]
[1680556732243,0.008,1786.2,1785.9,3.3486694]
[1680556732444,0.008,1786.2,1785.9,3.01311776]
[1680556732653,0.008,1786.2,1785.9,3.29307776]
[1680556732845,0.008,1786.2,1786.0,2.76602218]
[1680556733079,0.008,1786.2,1786.0,3.04596218]
[1680556733279,0.002,1786.3,1786.0,3.04596218]
[1680556733446,0.002,1786.3,1786.0,3.43146196]
[1680556734009,0.002,1786.3,1786.0,3.15152196]
[1680556734201,0.01,1786.3,1786.0,2.76602218]
[1680556734365,0.002,1786.3,1786.0,2.76602218]
[1680556734564,0.01,1786.3,1786.0,2.76602218]
[1680556734746,0.002,1786.3,1786.0,2.76602218]
[1680556734941,0.002,1786.3,1786.0,3.04597218]
[1680556734942,0.01,1786.3,1786.0,3.04597218]
[1680556735147,0.01,1786.3,1786.1,0.30459722]
[1680556735495,0.01,1786.3,1786.1,3.0706194]
[1680556736046,0.01,1786.3,1785.9,0.39109558]
[1680556736342,0.01,1786.3,1786.1,0.8398]
[1680556736676,0.01,1786.3,1786.2,2.99602218]
[1680556736880,0.01,1786.3,1786.2,2.76602218]
[1680556737260,0.01,1786.3,1786.2,2.99602218]
[1680556737469,0.01,1786.3,1786.2,3.2956244]
[1680556737799,0.01,1786.3,1786.2,2.99602218]
[1680556738246,0.01,1786.3,1786.2,3.27594218]
[1680556738448,0.008,1786.3,1786.2,2.99602218]
[1680556738669,0.2799,1786.3,1786.2,2.76602218]
[1680556738866,0.929481,1786.3,1786.0,0.002]
[1680556739048,0.372671,1786.3,1785.9,0.24709558]
[1680556739249,0.008,1786.3,1785.9,3.01311776]
[1680556739487,0.008,1786.3,1786.0,2.76602218]
[1680556739783,0.008,1786.4,1786.3,0.00338647]
[1680556740143,0.008,1786.5,1786.3,0.00338647]
[1680556741859,0.28787,1786.5,1786.3,0.00338647]
[1680556742385,0.50929024,1786.5,1786.3,0.00338647]
[1680556742585,0.28787,1786.5,1786.3,0.00338647]
[1680556742887,0.008,1786.5,1786.3,0.00338647]
[1680556743247,0.28787,1786.5,1786.3,0.00338647]
[1680556743475,0.008,1786.5,1786.3,0.00338647]
[1680556743961,1.41064225,1786.5,1786.3,0.00338647]
[1680556745481,0.56502225,1786.5,1786.2,2.76602218]
[1680556745686,0.27987,1786.5,1786.2,2.76602218]
[1680556746460,2.76592242,1786.6,1786.3,0.28602383]
[1680556749495,2.76592242,1786.6,1786.1,35.002]
[1680556749795,0.83968,1786.4,1786.1,0.002]
[1680556749998,0.83968,1786.4,1785.8,0.00751452]
[1680556750199,0.83968,1786.4,1785.9,35.0]
[1680556750496,1.95947,1786.2,1785.9,0.002]
[1680556750700,1.95947,1786.2,1785.6,0.002]
[1680556750904,1.95947,1786.2,1785.7,2.76602218]
[1680556751070,1.95947,1786.2,1785.6,0.00751452]
[1680556751277,0.195947,1786.1,1785.6,2.76602218]
[1680556751472,0.83988,1786.0,1785.6,2.76602218]
[1680556751692,0.83988,1786.0,1785.6,2.76802218]
[1680556752001,0.83988,1786.0,1785.6,2.7715367]
[1680556752501,0.83988,1786.0,1785.6,2.76602218]
[1680556752705,1.0556427,1786.0,1785.6,2.76602218]
[1680556753067,1.0556427,1786.0,1785.5,0.14951452]
[1680556753270,1.0556427,1786.0,1785.5,2.90802218]
[1680556753465,6.9396427,1786.0,1785.4,0.14951452]
[1680556753777,9.57796427,1785.9,1785.1,0.142]
[1680556753980,1.96003,1785.7,1785.2,2.76602218]
[1680556754287,1.96003,1785.7,1785.2,2.7715367]
[1680556754494,2.156033,1785.7,1785.2,2.7715367]
[1680556754863,2.156033,1785.7,1785.2,0.00551452]
[1680556755093,2.156033,1785.7,1785.1,0.14751452]
[1680556755292,2.156033,1785.7,1785.1,2.9135367]
[1680556757201,4.344033,1785.7,1785.1,2.9135367]
[1680556757401,0.84011,1785.5,1785.1,2.9135367]
[1680556759171,0.8401,1785.5,1785.1,2.9135367]
[1680556761234,0.8401,1785.5,1785.1,0.00551452]
[1680556761381,0.8401,1785.5,1785.0,0.142]
[1680556761580,0.8401,1785.5,1785.2,0.2866472]
[1680556761824,0.28006,1785.3,1785.2,0.2866472]
[1680556762406,0.84018,1785.3,1785.2,0.2866472]
[1680556762719,0.28006,1785.3,1784.9,0.14751452]
[1680556762919,0.28006,1785.3,1784.9,2.9135367]
[1680556763121,0.28006,1785.3,1784.9,2.7715367]
[1680556764320,0.28006,1785.3,1785.0,0.142]
[1680556764828,0.4364033,1785.6,1785.1,2.76602218]
[1680556765010,0.28001,1785.7,1785.2,0.23]
[1680556765190,0.28,1785.7,1785.3,2.76602218]
[1680556765389,0.84011015,1785.8,1785.3,3.0936314]
[1680556765617,1.40008015,1785.8,1785.3,2.76602218]
[1680556765784,0.56012015,1785.8,1785.3,2.76602218]
[1680556765985,2.197,1785.9,1785.7,2.76602218]
[1680556766192,7.31562557,1786.5,1785.9,5.884]
[1680556766193,0.008,1786.2,1785.9,5.884]
[1680556766410,0.57231964,1786.5,1786.0,2.99602218]
[1680556766594,1.92633242,1786.6,1786.0,2.76602218]
[1680556766595,0.2799,1786.3,1786.0,2.76602218]
[1680556766796,0.2799,1786.4,1786.0,2.76602218]
[1680556767813,0.83968,1786.4,1786.0,2.76602218]
[1680556768131,2.38963324,1786.5,1786.0,2.76602218]
[1680556768429,0.23896332,1786.4,1786.0,2.76602218]
[1680556768728,0.2625878,1786.4,1786.0,2.76602218]
[1680556769127,0.2625878,1786.4,1785.9,0.00551452]
[1680556769329,2.185,1786.2,1785.8,0.14751452]
[1680556769628,0.2185,1786.1,1785.8,2.76602218]
[1680556769986,0.2185,1786.1,1785.8,2.7715367]
[1680556770187,0.2185,1786.1,1785.8,2.91002218]
[1680556770419,0.2185,1786.1,1785.8,2.76802218]
[1680556770625,2.4155,1786.1,1785.7,0.00551452]
[1680556770932,2.197,1786.1,1785.7,2.76602218]
[1680556771230,2.197,1786.1,1785.7,2.7715367]
[1680556771391,0.2197,1786.0,1785.7,0.00551452]
[1680556771588,0.2197,1786.0,1785.6,0.00551452]
[1680556771791,0.2197,1786.0,1785.6,2.76602218]
[1680556772095,0.2197,1786.0,1785.6,2.7715367]
[1680556772331,2.192,1786.2,1785.6,2.76602218]
[1680556772503,2.192,1786.2,1785.6,2.7715367]
[1680556772706,2.192,1786.2,1785.6,2.77002218]
[1680556772902,8.076,1786.2,1785.6,0.004]
[1680556773102,8.078,1786.2,1785.5,0.00551452]
[1680556773324,2.196,1786.0,1785.4,0.002]
[1680556773519,2.196,1786.0,1785.4,2.9135367]
[1680556773711,2.196,1786.0,1785.4,2.7715367]
[1680556774267,2.21962448,1786.0,1785.4,2.7715367]
[1680556774439,2.197,1785.9,1785.4,2.7715367]
[1680556774591,2.41906245,1785.9,1785.4,2.7715367]
[1680556774796,2.41906245,1785.9,1785.4,0.00551452]
[1680556774995,2.41906245,1785.9,1785.3,0.00551452]
[1680556775233,2.41906245,1785.9,1785.3,2.76602218]
[1680556775410,2.41906245,1785.9,1785.3,2.7715367]
[1680556775729,0.24190625,1785.8,1785.3,0.00551452]
[1680556775916,0.24190625,1785.8,1785.2,0.00551452]
[1680556776527,0.24190625,1785.8,1785.3,0.24318234]
[1680556778761,0.02362448,1785.9,1785.4,2.76602218]
[1680556778952,3.0,1786.0,1785.4,2.76602218]
[1680556779137,5.194,1786.1,1785.4,2.77002218]
[1680556779335,2.196,1785.9,1785.5,0.27700222]
[1680556779660,5.192,1786.0,1785.4,2.7715367]
[1680556779860,5.194,1786.0,1785.4,2.7715367]
[1680556780057,6.36382,1786.0,1785.4,2.76802218]
[1680556780258,2.192,1785.9,1785.4,2.7715367]
[1680556781946,2.192,1785.9,1785.4,0.00551452]
[1680556782144,2.192,1785.9,1785.3,0.24869686]
[1680556782462,2.21562448,1785.9,1785.3,3.01471904]
[1680556782664,0.22156245,1785.8,1785.3,3.01471904]
[1680556782861,0.22156245,1785.8,1785.3,0.24869686]
[1680556783362,0.22156245,1785.8,1785.3,0.24318234]
[1680556784823,0.22156245,1785.8,1785.5,0.5731791]
[1680556785227,3.6222,1786.1,1785.6,2.99602218]
[1680556785469,3.75695457,1786.1,1785.6,3.56920128]
[1680556786237,3.75695457,1786.1,1785.6,3.5747158]
[1680556786866,3.13675457,1786.1,1785.6,3.5747158]
[1680556787024,0.13675457,1786.1,1785.6,3.5747158]
[1680556788438,0.13675457,1786.1,1785.6,3.3447158]
[1680556788830,2.21162448,1786.0,1785.6,0.57869362]
[1680556789030,5.21162448,1786.0,1785.6,0.5731791]
[1680556789291,0.22116245,1785.9,1785.6,0.5731791]
[1680556789683,0.22116245,1785.9,1785.5,0.5731791]
[1680556790239,0.21884659,1785.9,1785.5,0.5731791]
[1680556791680,0.21884659,1785.9,1785.6,0.24212094]
[1680556792435,5.22162448,1786.0,1785.6,0.24212094]
[1680556792785,3.0,1785.9,1785.6,0.24212094]
[1680556792942,0.02562448,1786.0,1785.6,0.81530004]
[1680556793144,0.02362448,1786.0,1785.6,0.81530004]
[1680556793576,0.25936239,1786.0,1785.6,0.81530004]
[1680556793767,3.25936239,1786.0,1785.6,0.81530004]
[1680556793968,3.0,1786.0,1785.6,3.58132222]
[1680556794168,0.13675457,1786.1,1785.7,2.99602218]
[1680556794943,0.13675457,1786.1,1785.7,4.44803935]
[1680556795287,0.13675457,1786.1,1785.8,0.5731791]
[1680556795647,0.13675457,1786.1,1785.7,4.45003935]
[1680556795847,0.13675457,1786.1,1785.8,0.96086513]
[1680556797473,0.13675457,1786.1,1785.8,0.5731791]
[1680556797843,0.13675457,1786.1,1785.9,2.76602218]
[1680556798044,0.5665886,1786.5,1785.9,3.48120128]
[1680556798249,1.92633242,1786.6,1786.0,0.8031791]
[1680556798474,4.12333242,1786.6,1786.0,3.79820522]
[1680556799253,4.1469569,1786.6,1786.0,3.22502612]
[1680556799449,2.197,1786.4,1786.0,0.002]
[1680556799680,2.197,1786.4,1785.9,0.5751791]
[1680556799877,2.197,1786.4,1785.9,0.5731791]
[1680556800085,2.175,1786.2,1785.7,1.59953169]
[1680556800264,2.175,1786.2,1785.7,0.72069362]
[1680556800446,2.175,1786.2,1785.7,3.48520128]
[1680556800653,2.175,1786.2,1785.7,3.4867158]
[1680556802007,2.175,1786.2,1785.7,0.57869362]
[1680556802150,2.4145,1786.1,1785.7,0.5731791]
[1680556802353,2.197,1786.1,1785.6,0.81730004]
[1680556802582,2.197,1786.1,1785.6,0.81530004]
[1680556804402,2.197,1786.1,1785.6,0.9852653]
[1680556804590,2.197,1786.2,1785.6,0.9852653]
[1680556805412,2.175,1786.0,1785.6,0.81530004]
[1680556805701,2.19862448,1786.0,1785.6,0.81530004]
[1680556806207,2.188,1785.8,1785.6,0.24212094]
[1680556806554,2.188,1785.8,1785.6,0.31359889]
[1680556806962,2.19862448,1786.0,1785.6,0.31359889]
[1680556807171,2.19862448,1786.0,1785.6,0.4901605]
[1680556807350,2.19862448,1786.0,1785.6,1.0633396]
[1680556808202,2.19862448,1786.0,1785.6,0.88677799]
[1680556810775,2.19862448,1786.0,1785.6,3.65280017]
[1680556810776,2.21962448,1786.0,1785.6,3.65280017]
[1680556810993,2.196,1786.0,1785.6,3.65280017]
[1680556811462,2.196,1786.0,1785.6,4.53163824]
[1680556811662,2.196,1786.0,1785.7,0.45316382]
[1680556812061,0.008,1786.1,1785.7,0.45316382]
[1680556812410,5.194,1786.2,1785.8,3.33920128]
[1680556812411,0.002,1786.2,1785.8,3.33920128]
[1680556812712,7.58152084,1786.4,1786.2,0.00200913]
[1680556813365,2.74422084,1786.4,1786.2,0.00200913]
[1680556813565,3.0,1786.3,1786.2,0.00200913]
[1680556814519,3.0,1786.3,1786.2,0.32030963]
[1680556816712,3.0,1786.3,1786.2,0.31768401]
[1680556816894,3.57522208,1786.3,1786.2,0.31768401]
[1680556817597,3.57522208,1786.3,1785.8,3.3447158]
[1680556817767,3.0,1786.3,1785.8,3.3447158]
[1680556817969,2.198,1786.4,1785.8,3.3447158]
[1680556818178,2.196,1786.4,1785.8,3.3447158]
[1680556818562,2.196,1786.4,1785.9,0.31972381]
[1680556819343,3.002,1786.5,1785.9,0.31972381]
[1680556819603,4.83456348,1786.5,1785.8,3.3447158]
[1680556820568,5.39940577,1786.5,1785.8,3.3447158]
[1680556820775,5.40140577,1786.5,1785.8,3.3447158]
[1680556821860,5.884,1786.4,1785.8,0.57869362]
[1680556821986,8.069,1786.3,1785.8,0.57869362]
[1680556822170,1.255,1786.1,1785.8,0.57869362]
[1680556822798,1.255,1786.1,1785.8,0.00551452]
[1680556823140,1.255,1786.1,1785.8,0.57869362]
[1680556823802,1.3805,1786.1,1785.8,0.57869362]
[1680556824132,1.3805,1786.1,1785.8,0.00551452]
[1680556824570,7.2645,1786.1,1785.9,0.31972381]
[1680556824768,7.2665,1786.1,1785.9,0.31972381]
[1680556825107,6.61065,1786.0,1785.9,0.31972381]
[1680556825419,6.61265,1786.0,1785.9,0.31972381]
[1680556825626,6.61265,1786.0,1785.8,0.00551452]
[1680556825776,6.61265,1786.0,1785.8,0.002]
[1680556826405,6.61265,1786.0,1785.6,0.5731791]
[1680556826605,0.661265,1785.9,1785.6,0.5731791]
[1680556826806,0.661265,1785.9,1785.7,35.0]
[1680556827029,0.661265,1785.9,1785.7,35.00751452]
[1680556827622,3.661265,1785.9,1785.7,35.00751452]
[1680556829257,1.25,1785.8,1785.7,35.00751452]
[1680556829469,1.7411265,1785.8,1785.7,35.00751452]
[1680556829953,1.7411265,1785.8,1785.7,0.00751452]
[1680556830153,1.7411265,1785.8,1785.5,0.5731791]
[1680556830459,1.7411265,1785.8,1785.4,1.45601717]
[1680556830660,0.17411265,1785.7,1785.4,1.45753169]
[1680556830825,0.17411265,1785.7,1785.5,0.5731791]
[1680556831026,1.255,1785.6,1785.5,0.5731791]
[1680556831222,1.255,1785.6,1785.4,0.5751791]
[1680556831453,1.255,1785.6,1785.3,2.05519047]
[1680556831454,0.1255,1785.5,1785.3,0.57869362]
[1680556832259,1.255,1785.6,1785.3,0.57869362]
[1680556832609,1.255,1785.6,1785.3,0.5731791]
[1680556832809,1.255,1785.6,1785.2,36.45953169]
[1680556833008,1.255,1785.6,1785.2,35.58069362]
[1680556833207,1.70047371,1785.6,1785.2,35.58069362]
[1680556833460,0.44547371,1785.6,1785.2,35.58069362]
[1680556833650,3.19773713,1785.7,1785.3,0.5731791]
[1680556834966,3.19773713,1785.7,1785.2,36.45953169]
[1680556835165,3.19773713,1785.7,1785.2,35.58069362]
[1680556836576,3.19773713,1785.7,1785.3,0.33906808]
[1680556836785,0.31977371,1785.6,1785.3,0.33906808]
[1680556838193,0.31671291,1785.6,1785.3,0.33906808]
[1680556838394,3.19773713,1785.7,1785.3,0.33906808]
[1680556838895,1.255,1785.6,1785.3,0.33906808]
[1680556839246,4.255,1785.6,1785.3,0.33906808]
[1680556839493,1.255,1785.6,1785.3,0.33906808]
[1680556840993,1.255,1785.6,1785.3,35.33906808]
[1680556841200,1.255,1785.6,1785.3,35.3465826]
[1680556842409,1.255,1785.6,1785.3,35.34306808]
[1680556842616,1.45273713,1785.7,1785.3,35.3465826]
[1680556843214,0.17411265,1785.7,1785.3,35.3465826]
[1680556845524,8.886,1785.8,1785.3,38.88124086]
[1680556846429,8.886,1785.8,1785.3,35.3465826]
[1680556854082,0.84003,1785.7,1785.3,35.3465826]
[1680556854938,0.28001,1785.7,1785.3,35.3465826]
[1680556855238,3.28,1785.7,1785.3,35.3465826]
[1680556855439,0.28,1785.7,1785.3,35.3465826]
[1680556855953,0.28,1785.7,1785.4,3.53465826]
[1680556856275,0.28,1785.7,1785.4,3.54017278]
[1680556856475,0.002,1785.9,1785.5,0.34211922]
[1680556856660,0.27997,1785.9,1785.5,1.03495464]
[1680556856835,0.84632774,1786.0,1785.5,1.04046916]
[1680556857146,0.84632774,1786.0,1785.6,0.10404692]
[1680556857955,1.40623774,1786.0,1785.6,0.10404692]
[1680556858331,0.84632774,1786.0,1785.6,0.10404692]
[1680556859168,1.40623774,1786.0,1785.6,0.10404692]
[1680556859672,0.84632774,1786.0,1785.6,0.10404692]
[1680556860074,0.56635774,1786.0,1785.6,0.10404692]
[1680556860238,0.27996,1786.0,1785.6,0.10404692]
[1680556862395,0.83775455,1786.0,1785.6,0.10556144]
[1680556862556,0.83775455,1786.0,1785.6,0.10404692]
[1680556863365,0.83775455,1786.0,1785.5,0.92081284]
[1680556863691,1.38624378,1786.0,1785.5,0.92081284]
[1680556865822,1.38624378,1786.0,1785.5,0.34763374]
[1680556866907,1.38624378,1786.0,1785.5,0.92081284]
[1680556869480,1.38624378,1786.0,1785.5,35.92081284]
[1680556869697,2.66683197,1786.0,1785.5,35.92281284]
[1680556870091,1.82907742,1786.0,1785.5,35.92281284]
[1680556870308,0.27998,1785.9,1785.5,35.92281284]
[1680556870824,0.27998,1785.9,1785.5,36.80165091]
[1680556871280,6.16398,1785.9,1785.6,0.5731791]
[1680556871484,6.16598,1785.9,1785.6,0.57869362]
[1680556871685,1.30921792,1785.9,1785.6,0.9205377]
[1680556871913,0.27998,1785.9,1785.6,0.9205377]
[1680556872157,0.27997,1785.9,1785.6,0.9205377]
[1680556872561,0.83991,1785.9,1785.6,0.9205377]
[1680556872878,3.54848923,1786.0,1785.7,2.76602218]
[1680556872879,3.002,1786.0,1785.7,2.76602218]
[1680556873062,0.14221363,1786.1,1785.8,0.50660222]
[1680556873263,0.42015363,1786.1,1785.8,2.99602218]
[1680556874141,3.42015363,1786.1,1785.8,2.99602218]
[1680556874484,0.98002363,1786.1,1785.8,2.99602218]
[1680556879093,1.18999899,1786.1,1785.7,0.58069362]
[1680556879305,1.18999899,1786.1,1785.7,0.5731791]
[1680556880201,1.18999899,1786.1,1785.8,35.0]
[1680556880368,1.18999899,1786.1,1785.8,35.00751452]
[1680556881555,1.18999899,1786.1,1785.9,0.34101882]
[1680556882590,1.18999899,1786.1,1785.8,35.00751452]
[1680556882797,4.18999899,1786.1,1785.8,35.00751452]
[1680556883876,0.4189999,1786.0,1785.8,35.00751452]
[1680556884085,0.83991,1785.9,1785.8,35.00751452]
[1680556885858,3.15021363,1786.1,1785.9,0.00273268]
[1680556886058,0.42016363,1786.1,1785.9,0.00273268]
[1680556886368,0.90313999,1786.1,1785.9,0.00273268]
[1680556886553,3.90313999,1786.1,1785.9,0.00273268]
[1680556887170,3.14021363,1786.1,1785.9,0.00273268]
[1680556887501,3.42015363,1786.1,1785.9,0.00273268]
[1680556887658,0.42015363,1786.1,1785.9,0.00273268]
[1680556888375,0.14021363,1786.1,1785.9,0.00273268]
[1680556888572,0.42015363,1786.1,1785.9,0.00273268]
[1680556890355,0.98002363,1786.1,1785.9,0.00273268]
[1680556890911,0.97671285,1786.1,1785.9,0.00273268]
[1680556891114,0.27993,1786.1,1785.9,0.00273268]
[1680556891315,0.8398,1786.1,1785.9,0.00273268]
[1680556894098,3.8398,1786.1,1785.9,0.00273268]
[1680556894293,1.335953,1786.1,1785.9,0.00273268]
[1680556894497,0.8398,1786.1,1785.9,0.00273268]
[1680556896730,0.8398,1786.1,1786.0,0.40325861]
[1680556899442,0.27993,1786.1,1786.0,0.40325861]
[1680556901299,0.8398,1786.1,1786.0,0.40325861]
[1680556907349,4.26,1786.3,1786.0,0.40325861]
[1680556907565,0.27993,1786.2,1786.0,0.40325861]
[1680556907710,0.83977,1786.2,1786.0,0.40325861]
[1680556914459,0.83977,1786.2,1786.1,2.99602218]
[1680556914632,0.83682435,1786.2,1786.0,0.98243771]
[1680556914961,0.83682435,1786.2,1786.0,3.74245989]
[1680556915449,0.83682435,1786.2,1786.0,0.97643771]
[1680556915754,0.27698435,1786.2,1786.0,0.97643771]
[1680556916860,0.27698435,1786.2,1786.0,35.97643771]
[1680556917162,0.27698435,1786.2,1786.0,35.97843771]
[1680556917743,0.83682435,1786.2,1786.0,35.97843771]
[1680556919269,0.27698435,1786.2,1786.0,39.66499001]
[1680556923191,0.27991,1786.3,1786.0,39.66499001]
[1680556924045,0.27991,1786.3,1786.0,42.43101219]
[1680556924483,0.83972,1786.3,1786.0,42.43101219]
[1680556924942,0.27991,1786.3,1786.0,42.43101219]
[1680556925689,0.83972,1786.3,1786.0,42.43101219]
[1680556926045,0.83972,1786.3,1786.1,0.72753117]
[1680556926244,0.83972,1786.3,1786.1,3.49355335]
[1680556926490,0.83972,1786.3,1786.2,0.37741858]
[1680556927681,0.83972,1786.3,1785.9,1.45674985]
[1680556927886,0.83972,1786.3,1786.0,0.14567499]
[1680556928169,0.83972,1786.3,1786.0,0.71885409]
[1680556928376,0.83972,1786.3,1786.0,0.5731791]
[1680556929696,0.83972,1786.3,1785.9,4.22628655]
[1680556930919,0.83972,1786.3,1786.0,0.5731791]
[1680556931821,0.83972,1786.3,1785.9,4.22628655]
[1680556932528,0.83972,1786.3,1785.9,3.34744848]
[1680556932697,0.83972,1786.3,1785.9,3.34193396]
[1680556933315,0.83972,1786.3,1785.9,4.22077203]
[1680556933625,0.83972,1786.3,1785.9,3.34744848]
[1680556933922,0.83972,1786.3,1785.9,3.34193396]